fUSD/lending_fUSD_20250828
["ID","MTS","AMOUNT","RATE_DAILY","PERIOD"]
[381771135,1756339857239,-151.0,0.00017987,2]
[381771136,1756339857248,-151.0,0.00017987,2]
[381771137,1756339857257,-151.0,0.00017987,2]
[381771138,1756339857266,-286.221596,0.00017987,2]
[381771139,1756339857276,-151.0,0.00017987,2]
[381771140,1756339857286,-151.0,0.00017987,2]
[381771141,1756339857296,-151.0,0.00017987,2]
[381771142,1756339857305,-151.0,0.00017987,2]
[381771143,1756339857314,-151.0,0.00017987,2]
[381771144,1756339857323,-151.0,0.00017987,2]
[381771145,1756339857332,-151.0,0.00017987,2]
[381771146,1756339857341,-151.0,0.00017987,2]
[381771147,1756339857351,-151.0,0.00017987,2]
[381771148,1756339857361,-151.0,0.00017987,2]
[381771149,1756339857370,-151.0,0.00017987,2]
[381771150,1756339857379,-151.0,0.00017987,2]
[381771151,1756339857388,-183.623161,0.00017987,2]
[381771152,1756339857397,-151.0,0.00017987,2]
[381771153,1756339857406,-155.159768,0.00017987,2]
[381771154,1756339857415,-151.0,0.00017987,2]
[381771155,1756339857426,-344.548096,0.00017987,2]
[381771156,1756339857435,-344.548096,0.00017987,2]
[381771157,1756339857444,-344.548096,0.00017987,2]
[381771158,1756339857453,-151.0,0.00017987,2]
[381771159,1756339857462,-344.548096,0.00017987,2]
[381771160,1756339857471,-299.25245,0.00017987,2]
[381771161,1756339857480,-299.25245,0.00017987,2]
[381771162,1756339857489,-299.25245,0.00017987,2]
[381771163,1756339857498,-299.25245,0.00017987,2]
[381771164,1756339857507,-151.0,0.00017987,2]
[381771165,1756339857516,-151.0,0.00017987,2]
[381771166,1756339857525,-151.0,0.00017987,2]
[381771167,1756339857535,-286.352206,0.00017987,2]
[381771168,1756339857544,-151.0,0.00017987,2]
[381771169,1756339857553,-286.352206,0.00017987,2]
[381771170,1756339857565,-151.0,0.00017987,2]
[381771171,1756339857575,-297.851331,0.00017987,2]
[381771172,1756339857585,-286.352206,0.00017987,2]
[381771173,1756339857594,-286.352206,0.00017987,2]
[381771174,1756339857603,-151.0,0.00017987,2]
[381771175,1756339857612,-151.0,0.00017987,2]
[381771176,1756339857621,-151.0,0.00017987,2]
[381771177,1756339857630,-193.881478,0.00017987,2]
[381771178,1756339857639,-151.0,0.00017987,2]
[381771179,1756339857649,-151.0,0.00017987,2]
[381771180,1756339857658,-187.246304,0.00017987,2]
[381771181,1756339857668,-151.0,0.00017987,2]
[381771182,1756339857678,-151.0,0.00017987,2]
[381771183,1756339857688,-151.0,0.00017987,2]
[381771184,1756339857697,-216.204223,0.00017987,2]
[381771185,1756339857707,-151.0,0.00017987,2]
[381771186,1756339857719,-151.0,0.00017987,2]
[381771187,1756339857728,-1568.202127,0.00017987,2]
[381771188,1756339857740,-1568.202127,0.00017987,2]
[381771189,1756339857750,-151.0,0.00017987,2]
[381771190,1756339857759,-1568.202127,0.00017987,2]
[381771191,1756339857768,-1568.202127,0.00017987,2]
[381771192,1756339857778,-151.0,0.00017987,2]
[381771193,1756339857786,-151.0,0.00017987,2]
[381771194,1756339857795,-173.941752,0.00017987,2]
[381771195,1756339857805,-173.941752,0.00017987,2]
[381771196,1756339857814,-173.941752,0.00017987,2]
[381771197,1756339857825,-173.941752,0.00017987,2]
[381771198,1756339857837,-151.0,0.00017987,2]
[381771199,1756339857847,-151.0,0.00017987,2]
[381771200,1756339857856,-151.0,0.00017987,2]
[381771201,1756339857870,-151.0,0.00017987,2]
[381771202,1756339857879,-151.0,0.00017987,2]
[381771203,1756339857888,-151.0,0.00017987,2]
[381771204,1756339857897,-151.0,0.00017987,2]
[381771205,1756339857907,-207.149677,0.00017987,2]
[381771206,1756339857915,-151.0,0.00017987,2]
[381771207,1756339857925,-151.0,0.00017987,2]
[381771208,1756339857934,-151.0,0.00017987,2]
[381771209,1756339857945,-151.0,0.00017987,2]
[381771210,1756339857954,-151.0,0.00017987,2]
[381771211,1756339857963,-151.0,0.00017987,2]
[381771212,1756339857973,-151.0,0.00017987,2]
[381771213,1756339857982,-151.0,0.00017987,2]
[381771214,1756339857995,-151.0,0.00017987,2]
[381771215,1756339858004,-267.503047,0.00017987,2]
[381771216,1756339858013,-151.0,0.00017987,2]
[381771217,1756339858022,-158.865397,0.00017987,2]
[381771218,1756339858032,-158.865397,0.00017987,2]
[381771219,1756339858042,-158.865397,0.00017987,2]
[381771220,1756339858051,-151.0,0.00017987,2]
[381771221,1756339858060,-158.865397,0.00017987,2]
[381771222,1756339858070,-151.0,0.00017987,2]
[381771223,1756339858079,-296.601328,0.00017987,2]
[381771224,1756339858089,-151.0,0.00017987,2]
[381771225,1756339858098,-151.0,0.00017987,2]
[381771226,1756339858107,-151.0,0.00017987,2]
[381771227,1756339858116,-151.0,0.00017987,2]
[381771228,1756339858125,-151.0,0.00017987,2]
[381771229,1756339858135,-151.0,0.00017987,2]
[381771230,1756339858145,-151.0,0.00017987,2]
[381771231,1756339858155,-151.0,0.00017987,2]
[381771232,1756339858164,-151.0,0.00017987,2]
[381771233,1756339858173,-151.0,0.00017987,2]
[381771234,1756339858183,-227.206264,0.00017987,2]
[381771235,1756339858192,-3787.681592,0.00017988,2]
[381771236,1756339858201,-4077.8852657,0.00017988,2]
[381771237,1756339858210,-4368.0889394,0.00017988,2]
[381771238,1756339858219,-950.87196913,0.0001799,2]
[381771239,1756339858229,-2000.0,0.00017999,2]
[381771240,1756339858238,-666.0,0.00017999,2]
[381771241,1756339858247,-666.0,0.00017999,2]
[381771242,1756339858256,-666.0,0.00017999,2]
[381771243,1756339858266,-300.0,0.00017999,2]
[381771244,1756339858275,-666.0,0.00017999,2]
[381771245,1756339858285,-300.0,0.00017999,2]
[381771246,1756339858294,-639.45437094,0.00017999,2]
[381771247,1756339858303,-300.0,0.00017999,2]
[381771248,1756339858313,-300.0,0.00017999,2]
[381771249,1756339858322,-540.61,0.00017999,2]
[381771250,1756339858333,-540.61,0.00017999,2]
[381771251,1756339858348,-540.61,0.00017999,2]
[381771252,1756339858357,-540.61,0.00017999,2]
[381771253,1756339858367,-540.61,0.00017999,2]
[381771254,1756339858387,-540.61,0.00017999,2]
[381771255,1756339858399,-540.61,0.00017999,2]
[381771256,1756339858408,-540.61,0.00017999,2]
[381771257,1756339858418,-540.61,0.00017999,2]
[381771258,1756339858427,-540.61,0.00017999,2]
[381771259,1756339858436,-540.61,0.00017999,2]
[381771260,1756339858445,-540.61,0.00017999,2]
[381771261,1756339858454,-540.61,0.00017999,2]
[381771262,1756339858465,-540.61,0.00017999,2]
[381771263,1756339858475,-540.61,0.00017999,2]
[381771264,1756339858486,-540.61,0.00017999,2]
[381771265,1756339858495,-540.61,0.00017999,2]
[381771266,1756339858504,-540.61,0.00017999,2]
[381771267,1756339858514,-540.67235778,0.00017999,2]
[381771268,1756339858524,-150.0,0.00017999,2]
[381771269,1756339858533,-150.0,0.00017999,2]
[381771270,1756339858542,-150.0,0.00017999,2]
[381771271,1756339858553,-150.0,0.00018,2]
[381771272,1756339858564,-150.0,0.00018,2]
[381771273,1756339858574,-150.0,0.00018,2]
[381771274,1756339858583,-150.0,0.00018,2]
[381771275,1756339858592,-2481645.18455781,0.00018,2]
[381771276,1756339858601,-211729.91601323,0.00018,4]
[381771277,1756339858610,-500.0,0.00018,2]
[381771278,1756339858619,-644.93186427,0.00018,2]
[381771279,1756339858627,-500.0,0.00018,2]
[381771280,1756339858637,-198602.58710756,0.00018,2]
[381771281,1756339858646,-90737.74192843,0.00018,2]
[381771282,1756339858999,-1211.20020554,0.00018,2]
[381771283,1756339859011,-538.54285153,0.00018,2]
[381771284,1756339859506,-400.0,0.00017699,2]
[381771285,1756339859517,-400.0,0.00017973,2]
[381771286,1756339859528,-11.43068633,0.00018,2]
[381771287,1756339859539,-346.26200011,0.00018,2]
[381771288,1756339859551,-8643.54972922,0.00018,2]
[381771289,1756339859564,-8947.21879473,0.00018,2]
[381771290,1756339859576,-8943.78386462,0.00018,2]
[381771291,1756339859589,-9077.54866152,0.00018,2]
[381771292,1756339859601,-8943.84023489,0.00018,2]
[381771293,1756339859612,-1685.2929534,0.00018,2]
[381771294,1756339859823,-37444.10510445,0.00018,2]
[381771295,1756339859833,-1661.5533404,0.00018,2]
[381771296,1756339859843,-1534.98,0.00018,2]
[381771297,1756339859852,-279061.8300514,0.00018,2]
[381771298,1756339859867,-199831.61464409,0.00018,2]
[381771299,1756339860249,-400.0,0.00017546,2]
[381771300,1756339860259,-400.0,0.00017546,2]
[381771301,1756339860268,-400.0,0.00017547,2]
[381771302,1756339860280,-150.0,0.00017557,2]
[381771303,1756339860289,-487.42829873,0.0001772,2]
[381771304,1756339860300,-151.0,0.00017819,2]
[381771305,1756339860310,-400.0,0.0001782,2]
[381771306,1756339860320,-151.0,0.00017831,2]
[381771307,1756339860330,-151.0,0.00017987,2]
[381771308,1756339860339,-396.61346619,0.00018,2]
[381771309,1756339860351,-9240.7849084,0.00018,2]
[381771310,1756339860384,-496.674,0.00018,2]
[381771311,1756339860395,-2051.0544998,0.00018,2]
[381771312,1756339860407,-262.18435819,0.00018,2]
[381771313,1756339860425,-32832.80243195,0.00018,2]
[381771314,1756339860436,-2176.55578582,0.00018,2]
[381771315,1756339860448,-2097.96050438,0.00018,2]
[381771317,1756339890862,150.0,0.00025604,120]
[381771318,1756339925134,-400.0,0.00013699,2]
[381771319,1756339939149,-100.0,0.00013699,2]
[381771320,1756339939188,-200.0,0.00014354,2]
[381771321,1756339951341,150.0,0.00025108,120]
[381771322,1756339953686,-176.69793813,0.00014353,2]
[381771323,1756339953729,-77.58412374,0.00014354,2]
[381771324,1756339953761,-22.41587626,0.00014354,2]
[381771325,1756339953786,-129.58412374,0.00014354,2]
[381771326,1756339957426,-121.41587626,0.00014354,2]
[381771327,1756339957449,-2500.0,0.00014354,2]
[381771328,1756339957474,-250.0,0.00015009,2]
[381771329,1756339957498,-250.0,0.00015068,2]
[381771330,1756339957522,-300.0,0.00015068,2]
[381771331,1756339957544,-251.0,0.00015068,2]
[381771332,1756339957567,-2500.0,0.00015068,2]
[381771333,1756340011201,150.0,0.00024748,120]
[381771335,1756340070522,150.0,0.00026498,120]
[381771336,1756340131219,150.0,0.00029558,120]
[381771340,1756340251000,150.0,0.00029832,120]
[381771341,1756340370792,150.0,0.0002914,120]
[381771342,1756340381283,-150.0,0.00013699,2]
[381771343,1756340382114,-24.1,0.00013699,2]
[381771346,1756340491957,150.0,0.00029334,120]
[381771348,1756340670772,150.0,0.00028683,120]
[381771353,1756340851147,150.0,0.000278,120]
[381771371,1756341031679,-189.28,0.00016316,2]
[381771373,1756341031688,-421.16814184,0.00016343,3]
[381771377,1756341031733,-578.83185816,0.00016343,3]
[381771379,1756341031742,-215.34008203,0.00016458,2]
[381771380,1756341031752,-157.02,0.00016492,2]
[381771382,1756341031761,-184.79718564,0.00016505,2]
[381771383,1756341031772,-815.20281436,0.00016505,2]
[381771385,1756341031782,-160.0,0.00016558,7]
[381771387,1756341031791,-606.0,0.00016779,2]
[381771388,1756341031801,-257.91778498,0.00016872,2]
[381771390,1756341031811,-1882.71680036,0.00016872,2]
[381771391,1756341031820,-1200.0,0.00017165,2]
[381771393,1756341031830,-606.0,0.00017166,2]
[381771395,1756341031839,-496.36125208,0.00017249,2]
[381771398,1756341031861,-109.63874792,0.00017249,2]
[381771399,1756341031870,-168.0,0.00017251,2]
[381771401,1756341031879,-500.0,0.00017342,2]
[381771403,1756341031888,-42.85609016,0.00017367,2]
[381771405,1756341031900,-125.14390984,0.00017367,2]
[381771406,1756341031910,-300.0,0.00017445,2]
[381771408,1756341031919,-1272.48531027,0.00017446,2]
[381771410,1756341031929,-535.2017936,0.00017459,2]
[381771411,1756341031938,-894.6286607,0.000175,2]
[381771414,1756341031958,-1105.3713393,0.000175,2]
[381771416,1756341031968,-176.0899668,0.00017524,2]
[381771417,1756341031977,-172.91011196,0.00017524,2]
[381771419,1756341031987,-193.73322315,0.00017524,2]
[381771427,1756341037658,-130.24920503,0.00017524,2]
[381771428,1756341037668,-150.0,0.00017524,2]
[381771429,1756341037679,-200.0,0.00017525,2]
[381771430,1756341037688,-670.58624095,0.00017525,2]
[381771431,1756341037700,-160.0,0.00017525,2]
[381771432,1756341037712,-200.0,0.00017525,2]
[381771433,1756341037722,-500.0,0.00017525,2]
[381771434,1756341037732,-500.0,0.00017525,2]
[381771435,1756341037742,-500.0,0.00017525,2]
[381771436,1756341037751,-510.22799472,0.00017525,2]
[381771437,1756341037772,-489.77200528,0.00017525,2]
[381771438,1756341037782,-142.3366497,0.00017525,2]
[381771439,1756341037793,-357.6633503,0.00017525,2]
[381771440,1756341037803,-166.58664972,0.00017525,2]
[381771441,1756341037815,-833.41335028,0.00017525,2]
[381771442,1756341037824,-500.0,0.00017525,2]
[381771443,1756341037833,-1000.0,0.00017525,2]
[381771444,1756341037842,-500.0,0.00017525,2]
[381771445,1756341037852,-1000.0,0.00017525,2]
[381771446,1756341037862,-500.0,0.00017525,2]
[381771447,1756341037872,-1000.0,0.00017525,2]
[381771448,1756341037882,-500.0,0.00017525,2]
[381771449,1756341037891,-1000.0,0.00017525,2]
[381771450,1756341037901,-500.0,0.00017525,2]
[381771451,1756341037910,-1000.0,0.00017525,2]
[381771452,1756341037921,-500.0,0.00017525,2]
[381771453,1756341037930,-1000.0,0.00017525,2]
[381771455,1756341037939,-433.09959716,0.00017525,2]
[381771457,1756341037949,-1000.0,0.00017525,2]
[381771459,1756341037958,-1000.0,0.00017525,2]
[381771461,1756341037967,-1000.0,0.00017525,2]
[381771463,1756341037977,-1000.0,0.00017525,2]
[381771465,1756341037986,-500.0,0.00017525,2]
[381771467,1756341037995,-151.0,0.00017525,2]
[381771469,1756341038004,-322.6107,0.00017525,2]
[381771471,1756341038013,-3026.43104629,0.00017534,2]
[381771473,1756341038022,-400.0,0.00017544,2]
[381771475,1756341038031,-400.0,0.00017544,2]
[381771477,1756341038040,-400.0,0.00017544,2]
[381771479,1756341038049,-400.0,0.00017544,2]
[381771481,1756341038059,-400.0,0.00017544,2]
[381771483,1756341038068,-329.4555805,0.00017544,2]
[381771484,1756341038077,-400.0,0.00017544,2]
[381771486,1756341038087,-400.0,0.00017544,2]
[381771488,1756341038096,-392.7,0.00017544,2]
[381771490,1756341038105,-400.0,0.00017544,2]
[381771492,1756341038114,-400.0,0.00017544,2]
[381771494,1756341038123,-400.0,0.00017544,2]
[381771496,1756341038132,-337.0124027,0.00017544,2]
[381771498,1756341038141,-400.0,0.00017544,2]
[381771500,1756341038151,-400.0,0.00017544,2]
[381771502,1756341038159,-400.0,0.00017544,2]
[381771504,1756341038169,-400.0,0.00017544,2]
[381771506,1756341038178,-400.0,0.00017544,2]
[381771507,1756341038187,-400.0,0.00017544,2]
[381771508,1756341038196,-400.0,0.00017544,2]
[381771509,1756341038205,-400.0,0.00017544,2]
[381771510,1756341038219,-400.0,0.00017544,2]
[381771511,1756341038227,-400.0,0.00017544,2]
[381771512,1756341038236,-400.0,0.00017544,2]
[381771513,1756341038247,-497.68,0.00017544,2]
[381771514,1756341038257,-494.52,0.00017544,2]
[381771515,1756341038267,-400.0,0.00017544,2]
[381771516,1756341038276,-400.0,0.00017544,2]
[381771517,1756341038285,-432.85,0.00017544,2]
[381771518,1756341038295,-400.0,0.00017544,2]
[381771519,1756341038304,-400.0,0.00017544,2]
[381771520,1756341038313,-157.16132994,0.00017544,2]
[381771521,1756341038322,-215.99387924,0.00017544,2]
[381771522,1756341038345,-184.00612076,0.00017544,2]
[381771523,1756341038354,-400.0,0.00017544,2]
[381771524,1756341038363,-857.5,0.00017544,2]
[381771525,1756341038373,-400.0,0.00017544,2]
[381771526,1756341038382,-400.0,0.00017544,2]
[381771527,1756341038393,-400.0,0.00017544,2]
[381771528,1756341038402,-400.0,0.00017544,2]
[381771529,1756341038411,-400.0,0.00017544,2]
[381771530,1756341038420,-815.36,0.00017544,2]
[381771531,1756341038430,-479.51,0.00017544,2]
[381771533,1756341038439,-400.0,0.00017544,2]
[381771535,1756341038448,-400.0,0.00017544,2]
[381771537,1756341038458,-400.0,0.00017544,2]
[381771539,1756341038467,-400.0,0.00017544,2]
[381771541,1756341038477,-400.0,0.00017544,2]
[381771543,1756341038486,-400.0,0.00017544,2]
[381771545,1756341038496,-400.0,0.00017544,2]
[381771547,1756341038505,-400.0,0.00017544,2]
[381771549,1756341038514,-400.0,0.00017544,2]
[381771551,1756341038523,-400.0,0.00017544,2]
[381771553,1756341038532,-400.0,0.00017544,2]
[381771555,1756341038541,-340.49808076,0.00017544,2]
[381771558,1756341038557,-59.50191924,0.00017544,2]
[381771560,1756341038568,-400.0,0.00017544,2]
[381771562,1756341038577,-400.0,0.00017544,2]
[381771564,1756341038587,-400.0,0.00017544,2]
[381771566,1756341038596,-132.08743076,0.00017544,2]
[381771654,1756341040414,-267.91256924,0.00017544,2]
[381771655,1756341040425,-400.0,0.00017544,2]
[381771656,1756341040434,-400.0,0.00017544,2]
[381771657,1756341040444,-400.0,0.00017544,2]
[381771658,1756341040453,-400.0,0.00017544,2]
[381771659,1756341040462,-277.45661984,0.00017544,2]
[381771660,1756341040472,-400.0,0.00017544,2]
[381771661,1756341040481,-400.0,0.00017544,2]
[381771662,1756341040491,-400.0,0.00017544,2]
[381771663,1756341040500,-400.0,0.00017544,2]
[381771664,1756341040510,-400.0,0.00017544,2]
[381771665,1756341040520,-400.0,0.00017544,2]
[381771666,1756341040530,-400.0,0.00017544,2]
[381771667,1756341040539,-400.0,0.00017544,2]
[381771668,1756341040549,-400.0,0.00017544,2]
[381771669,1756341040559,-400.0,0.00017544,2]
[381771670,1756341040568,-400.0,0.00017544,2]
[381771671,1756341040577,-400.0,0.00017544,2]
[381771672,1756341040586,-400.0,0.00017544,2]
[381771673,1756341040596,-400.0,0.00017544,2]
[381771674,1756341040606,-400.0,0.00017544,2]
[381771675,1756341040615,-400.0,0.00017544,2]
[381771676,1756341040624,-400.0,0.00017544,2]
[381771677,1756341040633,-400.0,0.00017544,2]
[381771678,1756341040642,-95.64719572,0.00017544,2]
[381771679,1756341040654,-304.35280428,0.00017544,2]
[381771680,1756341040663,-400.0,0.00017544,2]
[381771681,1756341040673,-400.0,0.00017544,2]
[381771682,1756341040683,-400.0,0.00017544,2]
[381771683,1756341040692,-400.0,0.00017544,2]
[381771684,1756341040702,-400.0,0.00017544,2]
[381771685,1756341040712,-400.0,0.00017544,2]
[381771686,1756341040722,-452.81,0.00017544,2]
[381771687,1756341040732,-400.0,0.00017544,2]
[381771688,1756341040742,-448.61,0.00017544,2]
[381771689,1756341040751,-400.0,0.00017544,2]
[381771690,1756341040761,-485.17,0.00017544,2]
[381771691,1756341040771,-400.0,0.00017544,2]
[381771692,1756341040780,-400.0,0.00017544,2]
[381771693,1756341040789,-400.0,0.00017544,2]
[381771694,1756341040798,-400.0,0.00017544,2]
[381771695,1756341040869,-400.0,0.00017544,2]
[381771696,1756341040879,-406.27,0.00017544,2]
[381771697,1756341040890,-400.0,0.00017545,2]
[381771698,1756341040899,-400.0,0.00017545,2]
[381771699,1756341040909,-400.0,0.00017545,2]
[381771700,1756341040918,-181.63086324,0.00017545,2]
[381771701,1756341040927,-400.0,0.00017545,2]
[381771702,1756341040936,-400.0,0.00017545,2]
[381771703,1756341040946,-401.27383933,0.00017545,2]
[381771704,1756341040956,-400.0,0.00017545,2]
[381771705,1756341040965,-400.0,0.00017545,2]
[381771706,1756341040975,-400.0,0.00017545,2]
[381771707,1756341040984,-400.0,0.00017545,2]
[381771708,1756341040993,-400.0,0.00017545,2]
[381771709,1756341041002,-400.0,0.00017545,2]
[381771710,1756341041012,-400.0,0.00017545,2]
[381771711,1756341041021,-400.0,0.00017545,2]
[381771712,1756341041030,-400.0,0.00017545,2]
[381771713,1756341041040,-400.0,0.00017545,2]
[381771714,1756341041049,-400.0,0.00017545,2]
[381771715,1756341041060,-400.0,0.00017545,2]
[381771716,1756341041070,-400.0,0.00017545,2]
[381771717,1756341041079,-400.0,0.00017545,2]
[381771718,1756341041089,-400.0,0.00017545,2]
[381771719,1756341041098,-400.0,0.00017545,2]
[381771720,1756341041107,-400.0,0.00017545,2]
[381771721,1756341041117,-400.0,0.00017545,2]
[381771722,1756341041127,-400.0,0.00017545,2]
[381771723,1756341041136,-400.0,0.00017545,2]
[381771724,1756341041146,-400.0,0.00017545,2]
[381771725,1756341041156,-400.0,0.00017545,2]
[381771726,1756341041165,-400.0,0.00017545,2]
[381771727,1756341041175,-400.0,0.00017545,2]
[381771728,1756341041183,-400.0,0.00017545,2]
[381771729,1756341041192,-400.0,0.00017545,2]
[381771730,1756341041202,-400.0,0.00017545,2]
[381771731,1756341041215,-400.0,0.00017545,2]
[381771732,1756341041224,-400.0,0.00017545,2]
[381771733,1756341041234,-400.0,0.00017545,2]
[381771734,1756341041242,-1434.42,0.00017545,2]
[381771735,1756341041253,-9065.08,0.00017545,2]
[381771736,1756341041262,-8687.37,0.00017545,2]
[381771737,1756341041271,-3359.76,0.00017545,2]
[381771738,1756341041281,-529.2356774,0.00017545,2]
[381771739,1756341041290,-400.0,0.00017545,2]
[381771740,1756341041299,-598.18,0.00017545,2]
[381771741,1756341041309,-400.0,0.00017545,2]
[381771742,1756341041318,-2111.07,0.00017545,2]
[381771743,1756341041327,-615.45,0.00017545,2]
[381771744,1756341041336,-428.58,0.00017545,2]
[381771745,1756341041345,-497.58,0.00017545,2]
[381771746,1756341041354,-400.0,0.00017545,2]
[381771747,1756341041363,-400.0,0.00017545,2]
[381771748,1756341041372,-426.42,0.00017545,2]
[381771749,1756341041380,-400.0,0.00017545,2]
[381771750,1756341041389,-400.0,0.00017545,2]
[381771751,1756341041398,-400.0,0.00017545,2]
[381771752,1756341041407,-465.35,0.00017545,2]
[381771753,1756341041416,-400.0,0.00017545,2]
[381771754,1756341041425,-400.0,0.00017545,2]
[381771755,1756341041434,-488.58,0.00017545,2]
[381771756,1756341041443,-455.21,0.00017545,2]
[381771757,1756341041452,-417.27,0.00017545,2]
[381771758,1756341041461,-400.0,0.00017545,2]
[381771759,1756341041469,-400.0,0.00017545,2]
[381771760,1756341041478,-400.0,0.00017545,2]
[381771761,1756341041487,-400.0,0.00017545,2]
[381771762,1756341041496,-479.16,0.00017545,2]
[381771763,1756341041505,-400.0,0.00017545,2]
[381771764,1756341041518,-2227.05,0.00017545,2]
[381771765,1756341041528,-563.55,0.00017545,2]
[381771766,1756341041538,-400.0,0.00017545,2]
[381771767,1756341041549,-400.0,0.00017545,2]
[381771768,1756341041558,-400.0,0.00017545,2]
[381771769,1756341041566,-400.0,0.00017545,2]
[381771770,1756341041575,-400.0,0.00017545,2]
[381771771,1756341041584,-400.0,0.00017545,2]
[381771772,1756341041593,-369.4,0.00017545,2]
[381771773,1756341041602,-400.0,0.00017545,2]
[381771774,1756341041612,-526.07,0.00017545,2]
[381771775,1756341041620,-579.68,0.00017545,2]
[381771776,1756341041629,-400.0,0.00017545,2]
[381771777,1756341041639,-400.0,0.00017546,2]
[381771778,1756341041649,-400.0,0.00017546,2]
[381771779,1756341041658,-400.0,0.00017546,2]
[381771780,1756341041668,-400.0,0.00017546,2]
[381771781,1756341041677,-400.0,0.00017546,2]
[381771782,1756341041686,-400.0,0.00017546,2]
[381771783,1756341041695,-400.0,0.00017546,2]
[381771784,1756341041704,-400.0,0.00017546,2]
[381771785,1756341041713,-400.0,0.00017546,2]
[381771786,1756341041723,-400.0,0.00017546,2]
[381771787,1756341041732,-400.0,0.00017546,2]
[381771788,1756341041741,-400.0,0.00017546,2]
[381771789,1756341041752,-400.0,0.00017546,2]
[381771790,1756341041761,-400.0,0.00017546,2]
[381771791,1756341041770,-400.0,0.00017546,2]
[381771792,1756341041779,-400.0,0.00017546,2]
[381771793,1756341041788,-400.0,0.00017546,2]
[381771794,1756341041798,-400.0,0.00017546,2]
[381771795,1756341041808,-400.0,0.00017546,2]
[381771796,1756341041818,-400.0,0.00017546,2]
[381771797,1756341041829,-400.0,0.00017546,2]
[381771798,1756341041837,-400.0,0.00017546,2]
[381771799,1756341041847,-387.06,0.00017546,2]
[381771800,1756341041855,-400.0,0.00017546,2]
[381771801,1756341041864,-400.0,0.00017546,2]
[381771802,1756341041873,-400.0,0.00017546,2]
[381771803,1756341041883,-400.0,0.00017546,2]
[381771804,1756341041893,-400.0,0.00017546,2]
[381771805,1756341041903,-400.0,0.00017546,2]
[381771806,1756341041913,-382.85,0.00017546,2]
[381771807,1756341041922,-400.0,0.00017546,2]
[381771808,1756341041932,-400.0,0.00017546,2]
[381771809,1756341041941,-400.0,0.00017546,2]
[381771810,1756341041951,-400.0,0.00017546,2]
[381771811,1756341041960,-531.45994548,0.00017546,2]
[381771812,1756341041970,-400.0,0.00017546,2]
[381771813,1756341041982,-400.0,0.00017546,2]
[381771814,1756341041991,-400.0,0.00017546,2]
[381771815,1756341042001,-433.0,0.00017546,2]
[381771816,1756341042011,-400.0,0.00017546,2]
[381771817,1756341042020,-400.0,0.00017546,2]
[381771818,1756341042029,-400.0,0.00017546,2]
[381771819,1756341042039,-400.0,0.00017546,2]
[381771820,1756341042048,-400.0,0.00017546,2]
[381771821,1756341042057,-400.0,0.00017546,2]
[381771822,1756341042067,-400.0,0.00017546,2]
[381771823,1756341042076,-400.0,0.00017546,2]